bitfinex-derivatives/quotes_ETHF0:USTF0_20250701
["timestamp","ask_amount","ask_price","bid_price","bid_amount"]
[1751346064002,4.21259586,2465.3,2465.2,39.624]
[1751346064300,1.00479586,2465.3,2465.2,40.43509]
[1751346064496,1.00479586,2465.3,2465.2,46.19815424]
[1751346068700,0.13638586,2465.3,2465.2,54.40595424]
[1751346068903,3.2078,2465.9,2465.8,0.81089]
[1751346069103,3.2078,2465.9,2465.8,40.33789]
[1751346069304,3.2078,2465.9,2465.2,1.3077]
[1751346069504,3.2078,2465.5,2465.4,0.81102]
[1751346069704,3.2078,2465.5,2465.3,39.52]
[1751346069905,3.2078,2465.5,2465.4,0.81102]
[1751346071207,3.2078,2465.5,2465.4,27.67002]
[1751346071607,4.01871,2465.8,2465.6,0.81094]
[1751346071813,4.01871,2465.8,2465.7,26.841]
[1751346072512,4.01871,2465.8,2465.7,27.65192]
[1751346072913,3.2078,2465.8,2465.7,27.65192]
[1751346079116,4.0186,2466.1,2466.0,0.81082]
[1751346079314,4.0186,2466.1,2466.0,39.96182]
[1751346079511,3.2078,2466.1,2466.0,39.96182]
[1751346080715,6.39886536,2466.1,2466.0,39.96182]
[1751346080918,5.58807536,2466.1,2466.0,39.96182]
[1751346081511,6.39886536,2466.1,2466.0,39.96182]
[1751346081707,5.58807536,2466.1,2466.0,39.96182]
[1751346082117,6.39886536,2466.1,2466.0,39.96182]
[1751346083120,5.58807536,2466.1,2466.0,39.96182]
[1751346083323,6.39886536,2466.1,2466.0,39.96182]
[1751346083624,5.58807536,2466.1,2466.0,39.96182]
[1751346084125,6.39886536,2466.1,2466.0,39.96182]
[1751346084423,5.58807536,2466.1,2466.0,39.96182]
[1751346084824,6.39886536,2466.1,2466.0,0.81082]
[1751346085021,6.39886536,2466.1,2466.0,39.83482]
[1751346085224,5.02096536,2466.1,2466.0,39.83482]
[1751346085923,4.21017536,2466.1,2466.0,39.83482]
[1751346086416,5.02096536,2466.1,2466.0,39.83482]
[1751346087124,4.21017536,2466.1,2466.0,39.83482]
[1751346087724,5.02096536,2466.1,2466.0,39.77382]
[1751346090425,5.02096536,2466.1,2466.0,38.963]
[1751346090628,0.81082,2466.0,2465.9,0.81084]
[1751346090821,0.81088,2465.9,2465.8,0.81086]
[1751346091021,1.81284911,2465.9,2465.8,39.70686]
[1751346091224,3.21364911,2465.9,2465.8,39.70686]
[1751346091419,3.21364911,2465.9,2465.6,1.0139]
[1751346091420,0.81092,2465.7,2465.6,1.0139]
[1751346091620,5.02117958,2465.7,2465.6,13.4329]
[1751346091820,5.02117958,2465.7,2465.6,38.886]
[1751346092625,5.02117958,2465.7,2465.6,39.69695]
[1751346092825,4.21025958,2465.7,2465.6,39.69695]
[1751346093027,4.21025958,2465.7,2465.6,0.81095]
[1751346093223,4.21025958,2465.7,2465.6,44.15331424]
[1751346094222,4.21025958,2465.7,2465.6,5.26631424]
[1751346094424,4.21025958,2465.7,2465.6,44.13131424]
[1751346095829,1.00245958,2465.7,2465.6,44.13131424]
[1751346101727,1.00245958,2465.7,2465.6,41.99173836]
[1751346105229,4.21025958,2465.7,2465.6,3.12673836]
[1751346105434,5.02118958,2465.7,2465.6,12.419]
[1751346105635,4.21025958,2465.7,2465.6,39.49095]
[1751346105831,5.02117958,2465.7,2465.6,39.49095]
[1751346106735,13.55338794,2465.7,2465.4,8.1121]
[1751346106927,3.12677836,2465.5,2465.4,33.3531]
[1751346107235,1.81344958,2465.5,2465.4,33.3531]
[1751346107431,8.16224958,2465.5,2465.4,33.3531]
[1751346108441,43.96224958,2465.5,2465.4,33.3531]
[1751346109536,43.96224958,2465.5,2465.4,7.0981]
[1751346109735,43.96224958,2465.5,2465.4,33.3231]
[1751346109935,43.96224958,2465.5,2465.4,34.13412]
[1751346110436,43.96224958,2465.5,2465.4,33.3231]
[1751346110840,43.96224958,2465.5,2465.4,34.13412]
[1751346111740,43.96224958,2465.5,2465.4,33.3231]
[1751346112044,43.96224958,2465.5,2465.4,34.13412]
[1751346112949,43.96224958,2465.5,2465.4,7.90912]
[1751346113147,43.96224958,2465.5,2465.4,46.30512]
[1751346114350,43.96224958,2465.5,2465.4,45.4941]
[1751346115652,46.27803794,2465.5,2465.4,45.4401]
[1751346118250,43.96224958,2465.5,2465.4,45.4401]
[1751346121852,43.96224958,2465.5,2465.4,44.4261]
[1751346123653,43.96224958,2465.5,2465.4,41.1812]
[1751346124252,43.96148832,2465.5,2465.4,41.1812]
[1751346124848,47.16928832,2465.5,2465.4,41.1812]
[1751346125049,53.67408668,2465.5,2465.1,12.202]
[1751346125256,4.01889,2465.2,2465.1,12.202]
[1751346125554,5.02058832,2465.2,2465.1,38.208]
[1751346125852,47.15498832,2465.2,2465.1,38.224]
[1751346126853,45.82058832,2465.2,2465.1,40.53978836]
[1751346127155,4.20949832,2465.2,2465.1,41.35090836]
[1751346127350,4.20949832,2465.2,2465.1,43.53800836]
[1751346127549,5.02058832,2465.2,2465.1,43.53800836]
[1751346127748,4.20949832,2465.2,2465.1,43.53800836]
[1751346128155,5.02058832,2465.2,2465.1,43.53800836]
[1751346128953,4.20949832,2465.2,2465.1,43.53800836]
[1751346129451,5.02058832,2465.2,2465.1,38.9711]
[1751346129647,5.02058832,2465.2,2465.1,38.186]
[1751346129844,0.81112,2465.1,2465.0,3.2454]
[1751346130151,1.81281832,2465.1,2465.0,41.4314]
[1751346131050,1.81281832,2465.1,2465.0,3.2454]
[1751346131353,1.81281832,2465.1,2465.0,41.4254]
[1751346132852,1.00169832,2465.1,2465.0,43.64755]
[1751346136160,1.81281832,2465.1,2465.0,45.15218836]
[1751346136459,3.2078,2465.5,2465.0,52.46797672]
[1751346136645,3.17162898,2465.7,2465.4,2.31578836]
[1751346136847,6.37942898,2465.9,2465.6,2.31578836]
[1751346137050,3.17162898,2465.9,2465.8,3.12667836]
[1751346137250,3.17162898,2466.0,2465.9,0.81086]
[1751346137460,0.81079,2466.1,2465.9,29.10364836]
[1751346137653,3.19733721,2466.0,2465.9,30.42514836]
[1751346137855,4.00815721,2466.0,2465.9,3.63728836]
[1751346138061,4.00815721,2466.0,2465.9,38.18]
[1751346139960,0.81082,2466.0,2465.9,38.18]
[1751346140958,5.23476,2466.2,2465.7,62.87618836]
[1751346141259,5.23476,2466.2,2465.8,0.81089]
[1751346141260,0.81086,2465.9,2465.8,0.81089]
[1751346141462,0.81086,2465.9,2465.8,38.86489]
[1751346141763,0.81086,2465.9,2465.8,38.054]
[1751346141963,0.81086,2465.9,2465.8,38.86489]
[1751346142360,4.01866,2465.9,2465.8,12.89089]
[1751346142660,4.01866,2465.9,2465.8,38.86489]
[1751346143165,0.81089,2465.8,2465.7,59.2389]
[1751346143457,0.81089,2465.8,2465.7,97.2899]
[1751346143860,0.81089,2465.8,2465.7,96.479]
[1751346144162,3.12667836,2465.8,2465.7,58.428]
[1751346144466,3.12667836,2465.8,2465.7,96.478]
[1751346144467,5.86917836,2465.8,2465.7,96.478]
[1751346145066,46.66917836,2465.8,2465.7,96.478]
[1751346145268,46.66917836,2465.8,2465.7,99.7225]
[1751346145765,46.66917836,2465.8,2465.7,73.7515]
[1751346145967,43.04489,2465.8,2465.7,99.7225]
[1751346146368,42.33319,2465.8,2465.7,99.7225]
[1751346146660,41.61089,2465.8,2465.7,100.53342]
[1751346146868,0.81089,2465.8,2465.7,100.53342]
[1751346147072,4.01867,2465.9,2465.8,0.81089]
[1751346147261,4.01867,2465.9,2465.8,3.91027836]
[1751346147462,44.81867,2465.9,2465.8,5.27747836]
[1751346148163,44.81866,2465.9,2465.8,2.1508]
[1751346148470,45.81621868,2465.9,2465.8,0.7836]
[1751346148969,0.81089,2465.8,2465.7,63.4449]
[1751346149169,0.81089,2465.8,2465.7,101.4929]
[1751346149170,1.80844868,2465.8,2465.7,101.4929]
[1751346149470,1.80844868,2465.8,2465.7,63.4449]
[1751346149769,1.80844868,2465.8,2465.7,101.4929]
[1751346150763,1.80844868,2465.8,2465.7,62.6864]
[1751346150971,1.80844868,2465.8,2465.7,100.7334]
[1751346151170,3.18844868,2465.8,2465.7,62.6864]
[1751346151371,3.18844868,2465.8,2465.7,88.6544]
[1751346152670,3.18844868,2465.8,2465.7,88.6534]
[1751346153373,3.18844868,2465.8,2465.7,62.6864]
[1751346153665,1.80844868,2465.8,2465.7,65.00218836]
[1751346153972,0.99755868,2465.8,2465.7,65.81310836]
[1751346154176,0.99755868,2465.8,2465.7,68.04800836]
[1751346155871,3.2078,2465.9,2465.8,0.81089]
[1751346156074,4.20279293,2465.9,2465.8,28.08649]
[1751346156373,4.20279293,2465.9,2465.8,28.87969]
[1751346157377,5.01365293,2465.9,2465.8,28.87969]
[1751346157676,4.20279293,2465.9,2465.8,28.87969]
[1751346159270,4.20279293,2465.9,2465.8,33.87969]
[1751346159679,4.20279293,2465.9,2465.8,28.87969]
[1751346160980,4.20279293,2465.9,2465.8,2.91469]
[1751346161278,4.20279293,2465.9,2465.8,40.95069]
[1751346161880,4.20279293,2465.9,2465.8,44.19499]
[1751346166284,4.20279293,2465.9,2465.8,44.18999]
[1751346169181,4.20279293,2465.9,2465.8,6.15899]
[1751346169381,4.20279293,2465.9,2465.8,44.18599]
[1751346170090,4.20279293,2465.9,2465.8,6.15899]
[1751346170283,4.20279293,2465.9,2465.8,44.18399]
[1751346171383,0.99499293,2465.9,2465.8,44.18399]
[1751346173090,0.99499293,2465.9,2465.8,6.15899]
[1751346173290,4.20279293,2465.9,2465.8,3.2443]
[1751346173488,5.01365293,2465.9,2465.8,41.2543]
[1751346173694,5.01365293,2465.9,2465.8,4.2581]
[1751346173890,7.26275293,2465.9,2465.8,42.2681]
[1751346174090,7.26275293,2465.9,2465.8,16.3241]
[1751346174290,7.26275293,2465.9,2465.8,42.2671]
[1751346174487,7.26275293,2465.9,2465.8,16.3241]
[1751346174693,7.26275293,2465.9,2465.8,42.2671]
[1751346175195,7.26275293,2465.9,2465.8,16.3241]
[1751346175390,7.26275293,2465.9,2465.8,42.2661]
[1751346175589,7.26275293,2465.9,2465.8,4.2581]
[1751346175894,7.26275293,2465.9,2465.8,42.2661]
[1751346177292,7.26275293,2465.9,2465.8,42.2651]
[1751346177492,7.26275293,2465.9,2465.8,4.2581]
[1751346177688,11.45189293,2465.9,2465.6,2.40625]
[1751346177883,11.45189293,2465.9,2464.7,3.2078]
[1751346177884,2.02748,2465.5,2464.9,25.939]
[1751346178090,4.01898,2465.0,2464.9,25.939]
[1751346178284,3.2078,2465.0,2464.7,12.067]
[1751346178491,0.81132,2464.5,2464.4,5.54315044]
[1751346178796,0.81135,2464.4,2464.3,61.63636208]
[1751346179087,0.81135,2464.4,2464.3,87.57636208]
[1751346179287,0.81135,2464.4,2464.3,84.349]
[1751346179689,4.01915,2464.4,2464.3,84.349]
[1751346180390,4.01915,2464.4,2464.3,58.409]
[1751346180588,5.01476587,2464.4,2464.3,70.477]
[1751346180791,5.01476587,2464.4,2464.3,96.415]
[1751346180985,4.20341587,2464.4,2464.3,97.22638]
[1751346181790,4.20341587,2464.4,2464.3,98.54298]
[1751346181993,4.20341587,2464.4,2464.3,100.85876836]
[1751346183302,3.2078,2464.4,2464.3,100.85876836]
[1751346183797,0.8435,2464.9,2464.8,0.81122]
[1751346183996,1.80141109,2465.0,2464.8,29.06598836]
[1751346184194,0.99026109,2464.9,2464.8,26.7502]
[1751346184390,0.99026109,2464.9,2464.8,38.8202]
[1751346185300,0.99026109,2464.9,2464.8,41.13598836]
[1751346186397,3.2078,2465.2,2464.9,0.81118]
[1751346186596,1.80037013,2465.1,2465.0,25.938]
[1751346187402,0.98922013,2465.1,2465.0,26.74915]
[1751346188301,0.98922013,2465.1,2465.0,29.06493836]
[1751346188703,3.2078,2465.2,2465.1,0.81112]
[1751346188896,4.19685564,2465.2,2465.1,1.60282]
[1751346189500,3.2078,2465.2,2465.1,1.60282]
[1751346190700,3.2078,2465.2,2465.1,39.60782]
[1751346191895,4.0231,2465.5,2465.4,0.81102]
[1751346192099,5.01266001,2465.5,2465.4,29.05780836]
[1751346192300,3.2078,2465.5,2465.4,29.05780836]
[1751346192605,3.2078,2465.8,2465.6,2.02738]
[1751346192899,3.2078,2466.1,2466.0,0.81082]
[1751346193094,4.19722457,2466.1,2466.0,29.05460836]
[1751346193297,3.2078,2466.1,2466.0,29.05460836]
[1751346193495,3.999,2466.4,2466.3,0.81072]
[1751346193701,3.999,2466.4,2466.3,41.12550836]
[1751346193898,3.999,2466.4,2466.3,38.80972]
[1751346194604,3.999,2466.4,2466.3,37.999]
[1751346195004,3.999,2466.4,2466.3,38.80972]
[1751346195807,4.98796477,2466.4,2466.3,38.80972]
[1751346197906,4.19676477,2466.4,2466.3,38.80972]
[1751346199512,4.19676477,2466.4,2466.3,37.999]
[1751346199806,5.00745477,2466.4,2466.3,37.999]
[1751346200007,4.19676477,2466.4,2466.3,37.999]
[1751346200207,5.00745477,2466.4,2466.3,37.999]
[1751346200609,4.19676477,2466.4,2466.3,37.976]
[1751346200902,5.00746477,2466.4,2466.3,37.976]
[1751346201511,5.00746477,2466.4,2466.3,38.78672]
[1751346202009,4.19676477,2466.4,2466.3,38.78672]
[1751346202407,5.00745477,2466.4,2466.3,38.78672]
[1751346202608,5.00745477,2466.4,2466.3,37.976]
[1751346203010,5.00745477,2466.4,2466.3,38.78672]
[1751346203512,4.19676477,2466.4,2466.3,38.78672]
[1751346204013,5.00745477,2466.4,2466.3,38.78672]
[1751346204208,4.19676477,2466.4,2466.3,38.78672]
[1751346204912,5.00745477,2466.4,2466.3,38.78672]
[1751346205611,5.00745477,2466.4,2466.3,37.976]
[1751346206006,5.00745477,2466.4,2466.3,38.78672]
[1751346206813,5.00745477,2466.4,2466.3,37.976]
[1751346207317,5.00745477,2466.4,2466.3,38.78672]
[1751346207807,4.19676477,2466.4,2466.3,38.78672]
[1751346208415,5.00745477,2466.4,2466.3,38.78672]
[1751346208615,4.19676477,2466.4,2466.3,39.61492]
[1751346209610,5.00745477,2466.4,2466.3,1.63892]
[1751346209914,5.00745477,2466.4,2466.3,39.57692]
[1751346210616,0.81072,2466.3,2466.2,4.05454]
[1751346210817,1.79968477,2466.3,2466.2,41.98954]
[1751346211013,0.98896477,2466.3,2466.2,41.98954]
[1751346212321,4.86406,2466.8,2466.7,0.81059]
[1751346212515,4.0535,2466.8,2466.7,26.69559]
[1751346213214,4.86406,2466.8,2466.7,25.885]
[1751346213615,4.86406,2466.8,2466.7,26.69559]
[1751346213814,4.86406,2466.8,2466.7,28.19908923]
[1751346214016,4.86406,2466.8,2466.7,29.00967923]
[1751346214819,4.0535,2466.8,2466.7,29.00967923]
[1751346215019,4.86406,2466.8,2466.7,29.00967923]
[1751346215515,4.0535,2466.8,2466.7,0.81059]
[1751346215722,4.86406,2466.8,2466.7,37.923]
[1751346216019,4.86406,2466.8,2466.7,0.81059]
[1751346216320,0.81059,2466.7,2466.6,3.47419923]
[1751346216514,0.81059,2466.7,2466.6,41.39619923]
[1751346222520,0.81059,2466.7,2466.6,2.66358923]
[1751346222717,0.81059,2466.7,2466.6,28.52658923]
[1751346223420,0.81059,2466.7,2466.6,29.33721923]
[1751346223921,0.81059,2466.7,2466.6,38.2545]
[1751346224118,2.25389,2466.7,2466.6,0.3495]
[1751346224419,0.81072,2466.3,2466.2,16.1001]
[1751346224618,4.01852,2466.3,2466.2,41.9591]
[1751346224819,5.00567104,2466.3,2466.2,41.9591]
[1751346228415,5.00567104,2466.3,2466.2,16.1001]
[1751346228616,5.00567104,2466.3,2466.2,41.9521]
[1751346230427,5.00567104,2466.3,2466.2,4.0561]
[1751346230627,5.00567104,2466.3,2466.2,29.0938]
[1751346231120,5.00567104,2466.3,2466.2,3.2438]
[1751346232925,45.80567104,2466.3,2466.2,3.2438]
[1751346233430,0.81089,2465.8,2465.7,12.018]
[1751346233823,1.79804104,2465.8,2465.7,12.018]
[1751346234530,1.79804104,2465.8,2465.7,12.82892]
[1751346235324,1.79804104,2465.8,2465.7,12.018]
[1751346235530,3.16474104,2465.8,2465.7,12.018]
[1751346236322,8.16474104,2465.8,2465.7,12.018]
[1751346236532,0.81095,2465.6,2465.5,1.3893]
[1751346236826,4.01875,2465.6,2465.5,1.3893]
[1751346237128,5.00590104,2465.6,2465.5,1.3893]
[1751346237328,6.36190104,2465.6,2465.5,1.3893]
[1751346237529,0.81105,2465.3,2465.2,38.7005]
[1751346237924,0.81105,2465.3,2465.2,39.51159]
[1751346238129,0.81105,2465.3,2465.2,0.8425]
[1751346238428,0.81105,2465.3,2465.1,15.19198923]
[1751346238429,0.81109,2465.2,2465.1,38.7139]
[1751346239726,0.81112,2465.1,2465.0,3.10778923]
[1751346240030,0.81112,2465.1,2465.0,40.96278923]
[1751346240331,0.81112,2465.1,2465.0,41.77393923]
[1751346241028,1.60922,2465.2,2465.1,0.81112]
[1751346241230,0.81112,2465.2,2465.1,0.81112]
[1751346241431,3.2078,2465.3,2465.2,0.81109]
[1751346241629,3.2078,2465.3,2465.2,4.43807923]
[1751346242132,3.2078,2465.3,2465.2,42.29007923]
[1751346242828,0.81104,2465.4,2465.3,0.81105]
[1751346243029,0.81104,2465.4,2465.3,2.12395]
[1751346243230,0.81104,2465.4,2465.3,2.95415]
[1751346243636,3.2078,2465.7,2465.6,0.81095]
[1751346243831,4.19339918,2465.7,2465.6,28.95403923]
[1751346247136,0.98559918,2465.7,2465.6,33.95403923]
[1751346247930,0.98559918,2465.7,2465.6,34.80823923]
[1751346249837,3.2078,2466.0,2465.9,3.12494923]
[1751346250039,3.2078,2466.0,2465.9,40.96094923]
[1751346250736,3.2078,2466.0,2465.9,42.32224923]
[1751346251739,3.19733721,2466.4,2465.9,44.71918923]
[1751346252037,0.8107,2466.4,2466.3,3.12479923]
[1751346253041,0.81069,2466.4,2466.3,3.12479923]
[1751346253240,0.81069,2466.4,2466.3,2.31408923]
[1751346253739,0.81069,2466.4,2466.3,3.12480923]
[1751346254938,0.81069,2466.4,2466.3,2.31408923]
[1751346255942,0.81076,2466.3,2466.1,40.13508923]
[1751346256237,0.81076,2466.3,2466.2,0.81074]
[1751346256837,0.81076,2466.3,2466.2,0.81076]
[1751346257043,0.81076,2466.2,2466.1,39.209]
[1751346258238,0.81076,2466.2,2466.1,2.20176]
[1751346258451,0.81076,2466.2,2466.1,14.22176]
[1751346258853,0.81076,2466.2,2466.1,0.40540082]
[1751346258854,3.12484923,2466.2,2466.1,0.40540082]
[1751346259046,0.81082,2466.0,2465.9,0.81085]
[1751346259455,0.81086,2465.9,2465.8,3.12494923]
[1751346260454,0.81086,2465.9,2465.8,2.31408923]
[1751346260854,0.81089,2465.8,2465.7,71.2456]
[1751346261756,1.79357138,2465.8,2465.7,72.05652]
[1751346262556,1.79357138,2465.8,2465.7,71.2456]
[1751346263357,1.79357138,2465.8,2465.7,97.0266]
[1751346263857,1.79357138,2465.8,2465.7,97.83752]
[1751346264256,1.79357138,2465.8,2465.7,97.0266]
[1751346264457,1.79357138,2465.8,2465.7,97.83752]
[1751346265057,0.98268138,2465.8,2465.7,97.83752]
[1751346265259,1.79357138,2465.8,2465.7,99.26832]
[1751346266854,0.98268138,2465.8,2465.7,99.26832]
[1751346267058,0.81086,2465.9,2465.8,0.81089]
[1751346267259,0.98238906,2465.9,2465.8,3.12497923]
[1751346267761,1.79324906,2465.9,2465.8,3.12497923]
[1751346268254,0.98238906,2465.9,2465.8,3.12497923]
[1751346268558,0.98238906,2465.9,2465.8,4.42817923]
[1751346269450,1.79324906,2465.9,2465.8,4.42817923]
[1751346269649,1.79324906,2465.9,2465.8,3.12497923]
[1751346269854,0.98238906,2465.9,2465.8,3.12497923]
[1751346274861,1.79324906,2465.9,2465.8,3.12497923]
[1751346275063,0.98238906,2465.9,2465.8,3.12497923]
[1751346276061,0.98238906,2465.9,2465.8,40.86897923]
[1751346276658,0.98238906,2465.9,2465.8,42.22577923]
[1751346277057,0.98238906,2465.9,2465.8,42.21977923]
[1751346285568,1.66545,2466.3,2466.2,0.81076]
[1751346285866,2.6483379,2466.3,2466.2,28.85284923]
[1751346289570,1.8375879,2466.3,2466.2,28.85284923]
[1751346289765,0.9828879,2466.3,2466.2,32.06064923]
[1751346291372,5.67628,2466.8,2466.7,0.81059]
[1751346291570,6.6583701,2466.8,2466.7,3.12467923]
[1751346292172,5.8377701,2466.8,2466.7,2.31408923]
[1751346293070,0.81059,2466.7,2466.6,37.7]
[1751346293270,1.7926801,2466.7,2466.6,37.7]
[1751346293573,2.6358801,2466.7,2466.6,37.7]
[1751346293771,2.6358801,2466.7,2466.6,11.986]
[1751346294069,4.0663801,2466.7,2466.6,11.986]
[1751346294477,4.0663801,2466.7,2466.6,12.79663]
[1751346295580,4.0663801,2466.7,2466.6,11.986]
[1751346295978,4.0663801,2466.7,2466.6,12.79663]
[1751346296577,2.6358801,2466.7,2466.6,12.79663]
[1751346296777,1.8252901,2466.7,2466.6,12.79663]
[1751346299776,1.8252901,2466.7,2466.6,13.62153]
[1751346300378,0.9820901,2466.7,2466.6,13.62153]
[1751346301584,0.9820901,2466.7,2466.6,15.03633]
[1751346303288,3.2078,2467.4,2466.8,2.02641]
[1751346303584,1.6842,2467.3,2467.2,2.31408923]
[1751346303788,0.8738,2467.3,2467.2,28.79951923]
[1751346304376,3.9961,2467.7,2467.6,0.8103]
[1751346304572,5.66976,2467.7,2467.6,40.74538923]
[1751346305185,4.0712,2467.7,2467.6,39.93508923]
[1751346305380,4.0712,2467.7,2467.6,40.74538923]
[1751346306478,4.0712,2467.7,2467.6,39.93508923]
[1751346306479,4.88146,2467.7,2467.6,39.93508923]
[1751346306684,0.8103,2467.6,2467.5,0.4089]
[1751346306884,2.2502,2467.6,2467.5,38.0209]
[1751346307386,2.2502,2467.6,2467.5,38.0189]
[1751346307778,0.81051,2467.0,2466.9,3.12458923]
[1751346308280,0.81056,2466.9,2466.8,0.81054]
[1751346308483,2.18236,2466.9,2466.8,38.41554]
[1751346308678,0.81052,2467.0,2466.9,0.81051]
[1751346308879,2.02622,2467.1,2466.7,2.31408923]
[1751346309181,1.74933,2466.9,2466.8,37.602]
[1751346309380,1.74933,2466.9,2466.8,38.41256]
[1751346309583,0.81056,2466.8,2466.7,11.946]
[1751346309782,2.18236,2466.8,2466.7,11.946]
[1751346310584,0.81074,2466.3,2466.2,0.81073]
[1751346310786,0.81074,2466.3,2466.2,37.599]
[1751346310982,0.81074,2466.3,2466.2,37.598]
[1751346311385,0.81072,2466.4,2466.2,37.598]
[1751346311579,0.81072,2466.3,2466.2,38.40874]
[1751346312377,2.15131,2466.4,2466.2,37.598]
[1751346312583,2.15131,2466.4,2466.2,38.40875]
[1751346312774,1.3406,2466.4,2466.3,0.81072]
[1751346312974,1.3406,2466.4,2466.3,3.12480923]
[1751346313381,1.3406,2466.4,2466.1,2.31408923]
[1751346313582,4.01852,2466.3,2466.2,11.946]
[1751346313885,0.81072,2466.3,2466.2,37.592]
[1751346314080,0.81072,2466.3,2466.2,11.946]
[1751346314285,0.81082,2466.0,2465.9,60.70008923]
[1751346314590,0.81082,2466.0,2465.9,61.51094923]
[1751346314776,0.81082,2466.0,2465.9,70.333]
[1751346314983,0.81095,2465.6,2465.5,0.88]
[1751346315678,0.81102,2465.5,2465.4,27.95708923]
[1751346315884,0.81102,2465.5,2465.4,0.81101]
[1751346316184,0.81097,2465.6,2465.5,0.81096]
[1751346316581,0.81099,2465.5,2465.4,40.71408923]
[1751346316776,0.81099,2465.5,2465.4,3.12508923]
[1751346316984,0.81099,2465.5,2465.4,40.71608923]
[1751346317386,0.81096,2465.6,2465.5,0.81095]
[1751346317588,0.81099,2465.5,2465.4,40.71608923]
[1751346317886,0.81098,2465.6,2465.5,0.81098]
[1751346319589,0.81099,2465.5,2465.4,40.71608923]
[1751346319785,0.81098,2465.6,2465.5,0.81098]
[1751346320284,8.34535,2465.9,2465.4,43.11288923]
[1751346320285,0.81099,2465.5,2465.4,43.92389923]
[1751346320588,0.81098,2465.6,2465.5,0.81099]
[1751346320889,0.81095,2465.6,2465.5,0.81099]
[1751346321188,1.78448225,2465.6,2465.5,0.81099]
[1751346321388,1.78448225,2465.6,2465.4,43.92389923]
[1751346321588,0.97353225,2465.5,2465.4,43.92389923]
[1751346322288,1.78452225,2465.5,2465.4,43.92389923]
[1751346323492,0.97353225,2465.5,2465.4,43.92389923]
[1751346324088,0.81097,2465.6,2465.5,0.81099]
[1751346324386,0.97261991,2465.6,2465.4,45.14043923]
[1751346324591,0.81093,2465.7,2465.6,0.81093]
[1751346324791,0.81093,2465.7,2465.6,3.12501923]
[1751346325092,1.78345781,2465.7,2465.6,28.75501923]
[1751346325286,1.78345781,2465.7,2465.6,40.70501923]
[1751346325486,0.97252781,2465.7,2465.6,40.70501923]
[1751346325993,1.78344781,2465.7,2465.6,38.39095]
[1751346326782,0.81095,2465.6,2465.5,3.12504923]
[1751346326993,1.78347781,2465.6,2465.5,40.66904923]
[1751346328289,0.81091,2465.8,2465.7,0.81092]
[1751346328489,2.22551,2465.8,2465.7,0.81092]
[1751346328787,2.22551,2465.8,2465.7,3.12500923]
[1751346329495,0.81098,2465.6,2465.5,0.81096]
[1751346329693,0.81098,2465.6,2465.5,38.34796]
[1751346331784,4.6224,2465.8,2465.5,38.34796]
[1751346331984,0.81095,2465.7,2465.6,27.92908923]
[1751346332794,0.81095,2465.7,2465.6,28.74003923]
[1751346337295,1.78373544,2465.7,2465.6,28.74003923]
[1751346337490,1.78373544,2465.7,2465.6,27.92908923]
[1751346339996,1.78373544,2465.7,2465.6,28.74003923]
[1751346340694,1.78373544,2465.7,2465.6,27.92908923]
[1751346340895,1.78373544,2465.7,2465.6,28.74003923]
[1751346341696,1.78373544,2465.7,2465.6,2.31408923]
[1751346341892,1.78373544,2465.7,2465.6,39.82508923]
[1751346342099,1.78373544,2465.7,2465.6,40.63603923]
[1751346342499,1.78370544,2465.7,2465.6,37.507]
[1751346344005,1.78370544,2465.7,2465.3,12.796]
[1751346344006,0.81102,2465.4,2465.3,12.796]
[1751346344206,0.81109,2465.2,2465.1,41.5031]
[1751346344400,1.78387544,2465.2,2465.1,11.916]
[1751346344608,1.78387544,2465.2,2465.1,37.5]
[1751346344801,0.81112,2465.1,2465.0,3.26118923]
[1751346345104,1.78390544,2465.1,2465.0,41.57233923]
[1751346347307,1.78390544,2465.1,2465.0,41.56733923]
[1751346347808,1.78390544,2465.1,2465.0,40.75618923]
[1751346348510,1.78390544,2465.1,2465.0,41.56733923]
[1751346348910,1.78390544,2465.1,2465.0,40.75618923]
[1751346349510,1.78390544,2465.1,2465.0,41.56733923]
[1751346350211,1.78390544,2465.1,2465.0,40.75618923]
[1751346351310,1.78390544,2465.1,2465.0,41.56733923]
[1751346354116,1.78390544,2465.1,2465.0,42.42583923]
[1751346356818,0.97278544,2465.1,2465.0,42.42583923]
[1751346357218,1.78390544,2465.1,2465.0,42.42583923]
[1751346358521,1.78390544,2465.1,2465.0,4.93083923]
[1751346358721,1.78390544,2465.1,2465.0,42.36883923]
[1751346359318,0.97278544,2465.1,2465.0,42.36583923]
[1751346359718,1.78390544,2465.1,2465.0,42.36583923]
[1751346360122,1.78390544,2465.1,2465.0,41.55468923]
[1751346361425,1.78390544,2465.1,2465.0,42.36583923]
[1751346361726,1.78390544,2465.1,2465.0,40.05175]
[1751346361924,1.78390544,2465.1,2465.0,42.36583923]
[1751346364427,1.78390544,2465.1,2465.0,40.56023923]
[1751346365226,1.78390544,2465.1,2465.0,3.12523923]
[1751346365433,1.78390544,2465.1,2465.0,40.54823923]
[1751346368231,0.81115,2465.0,2464.9,58.39]
[1751346368526,0.81115,2465.0,2464.7,2.56952]
[1751346368527,0.81122,2464.8,2464.7,2.56952]
[1751346368724,1.78400544,2464.8,2464.7,1.7583]
[1751346368930,1.78400544,2464.8,2464.7,38.2854]
[1751346369823,1.78400544,2464.8,2464.7,12.7584]
[1751346370221,0.97278544,2464.8,2464.5,3.2078]
[1751346370427,0.81125,2464.7,2464.6,11.882]
[1751346370627,1.78403544,2464.7,2464.6,11.882]
[1751346371328,0.81128,2464.6,2464.5,41.4241]
[1751346371528,1.78406544,2464.6,2464.5,41.4241]
[1751346371728,1.78406544,2464.6,2464.5,3.2078]
[1751346372124,1.78406544,2464.6,2464.5,4.01912]
[1751346372722,1.78406544,2464.6,2464.5,0.81132]
[1751346373933,0.81135,2464.4,2464.3,58.426]
[1751346374139,0.81135,2464.4,2463.6,3.2078]
[1751346374140,3.28687467,2464.4,2463.6,3.2078]
[1751346374328,3.28687467,2464.4,2463.7,2.31408923]
[1751346374329,0.81152,2463.9,2463.7,2.31408923]